Cogmind - Beta 9.5 @@@ ROGUE MODE // 2020.04.02 @ 23:00:00 // AFD2020/Player2 Player: Irot Result: Core destroyed Performance ------------- Evolutions (1) 500 Regions Visited (3) 600 Robots Destroyed (26) 130 Value Destroyed (562) 562 Prototype IDs (0) 0 Alien Tech Used (0) 0 Bonus (-333) -333 TOTAL SCORE: 1459 Bonus ------- Follower Combat Kills 108 Friendly Fire -441 Cogmind --------- Core Integrity 0/400 Matter 300/300 Energy 100/100 System Corruption 0% Temperature Cool (0) Movement Core (550) Ox10 Location -9/Materials Parts ------- > --- POWER (1) -------- (None) > --- PROPULSION (2) --- (None) > --- UTILITY (4) ------ Large Storage Unit Large Storage Unit > --- WEAPON (2) ------- Small Laser > --- INVENTORY (16) --- Ion Engine Ion Engine Ion Engine Ion Engine Light Ion Engine Faulty Cooled Ion Engine Light Nuclear Core Light Treads Aluminum Leg Aluminum Leg Improved Heat Sink Sensor Array Peak State ------------ > --- POWER ------------ Light Ion Engine > --- PROPULSION ------- Light Treads Light Treads > --- UTILITY ---------- Large Storage Unit Large Storage Unit > --- WEAPON ----------- EM Pulse Gun Assault Rifle > --- INVENTORY -------- Ion Engine Ion Engine Ion Engine Light Ion Engine Cooled Ion Engine Aluminum Leg Aluminum Leg Sensor Array [Rating: 8] Favorites ----------- Power Light Ion Engine Engine Light Ion Engine Propulsion Light Treads Treads Light Treads Utility Large Storage Unit Storage Large Storage Unit Weapon Assault Rifle Energy Gun EM Pulse Gun Ballistic Gun Assault Rifle Build | -11 -10 -10 -9 ------- Run | Scr Mat Min Mat Slots Evolved 2 | . . . 2 Power . | . . . . Propulsion . | . . . . Utility 2 | . . . 2 Weapon . | . . . . Parts Attached 10 | 6 3 . 1 Power 1 | 1 . . . Engine 1 | 1 . . . Core . | . . . . Reactor . | . . . . Propulsion 2 | 2 . . . Treads 2 | 2 . . . Leg . | . . . . Wheel . | . . . . Hover . | . . . . Flight . | . . . . Utility 3 | 1 2 . . Device . | . . . . Storage 3 | 1 2 . . Processor . | . . . . Hackware . | . . . . Protection . | . . . . Artifact . | . . . . Weapon 4 | 2 1 . 1 Energy Gun 2 | . 1 . 1 Energy Cannon . | . . . . Ballistic Gun 2 | 2 . . . Ballistic Cannon . | . . . . Launcher . | . . . . Special Weapon . | . . . . Impact Weapon . | . . . . Slashing Weapon . | . . . . Piercing Weapon . | . . . . Special Melee Weapon . | . . . . Unidentified Prototypes . | . . . . Parts Lost 6 | . 1 . 5 Power 1 | . . . 1 Propulsion 2 | . . . 2 Utility . | . . . . Weapon 3 | . 1 . 2 Highest Loss Streak 5 | . 1 . 5 Average Slot Usage (%) 91 | . 93 100 74 Engine 13 | . 14 14 10 Treads 26 | . 28 28 20 Storage 25 | . 23 28 22 Energy Gun 10 | . 5 14 10 Ballistic Gun 15 | . 20 14 10 Naked Turns . | . . . . Heaviest Build 39 | 10 39 39 39 Greatest Support 40 | 40 40 40 40 Greatest Overweight (x) 1 | . . . 1 Average Overweight (x) . | . . . . Largest Inventory Capacity 16 | 6 16 16 16 Average Capacity 13 | 5 12 16 16 Most Carried 13 | 6 6 7 13 Average Carried 5 | 3 4 5 7 Final Capacity 16 | 6 16 16 16 Final Carried 12 | 4 5 7 12 Class Distribution -------------------- 100% | Mutant Dominant Class ---------------- Mutant | -10/Materials Mutant | -10/Mines Mutant | -9/Materials Resources | -11 -10 -10 -9 ----------- Run | Scr Mat Min Mat Matter Collected 514 | 236 146 69 63 Remotely . | . . . . Salvage Created 1071 | . 331 423 317 Parts 60 | . 27 18 15 Haulers Intercepted . | . . . . Recyclers Shooed 1 | . 1 . . Parts Field Recycled . | . . . . Retrieved Matter . | . . . . Parts Self-Destructed . | . . . . Prevented . | . . . . Kills | -11 -10 -10 -9 ------- Run | Scr Mat Min Mat Combat Hostiles Destroyed 14 | . 8 3 3 Guns 13 | . 8 2 3 AOE 1 | . . 1 . Classes Destroyed 7 | . 3 4 . Worker 2 | . . 2 . Builder 1 | . . 1 . Tunneler 2 | . . 1 1 Recycler 4 | . . 2 2 Watcher 3 | . 2 . 1 Swarmer 3 | . 3 . . Grunt 11 | . 5 3 3 Best Kill Streak 4 | . 4 3 4 Combat Bots Only 3 | . 3 2 1 Max Kills in Single Turn 2 | . 1 2 1 Gunslinging 1 | . . 1 . Exploded 1 | . . 1 . Melee . | . . . . Uniques/NPCs Destroyed . | . . . . Combat | -11 -10 -10 -9 -------- Run | Scr Mat Min Mat Damage Taken 750 | . 222 165 363 Core 56 | . 21 . 35 Absorbed by Shields . | . . . . Core Remaining (%) 81 | 100 . 62 . Volleys Fired 76 | . 26 23 27 Largest 2 | . 2 2 2 Hottest 60 | . 60 60 60 Shots Fired 136 | . 42 46 48 Gun 136 | . 42 46 48 Cannon . | . . . . Launcher . | . . . . Special . | . . . . Kinetic 84 | . 40 23 21 Thermal 6 | . . . 6 Explosive . | . . . . Electromagnetic 46 | . 2 23 21 Robot Hit Streak 9 | . 9 5 4 Robot Miss Streak 5 | . 3 5 4 Penetration Max . | . . . . Secondary Targets 4 | . 1 1 2 Max Gunslinging Chain 1 | . 1 1 1 Shots Hit Robots 80 | . 27 25 28 Core Hits 40 | . 17 12 11 Critical Hits . | . . . . Critical Kills . | . . . . Critical Parts Destroyed . | . . . . Melee Attacks . | . . . . Impact . | . . . . Slashing . | . . . . Piercing . | . . . . Sneak Attacks . | . . . . Combat Hostiles . | . . . . Follow-up Attacks . | . . . . Damage Inflicted 1360 | . 333 570 457 Guns 1141 | . 323 396 422 Cannons . | . . . . Explosions 209 | . . 174 35 Melee . | . . . . Ramming 10 | . 10 . . Kinetic 685 | . 311 217 157 Thermal 273 | . . 174 99 Explosive . | . . . . Electromagnetic 392 | . 12 179 201 Impact . | . . . . Slashing . | . . . . Piercing . | . . . . Highest Corruption . | . . . . Average Corruption . | . . . . Corruption Purged . | . . . . Overload Shots . | . . . . Overflow Damage . | . . . . Projectiles . | . . . . Explosions . | . . . . Melee . | . . . . Knockbacks . | . . . . Impact . | . . . . Kinetic . | . . . . Secondary . | . . . . Self-Inflicted Damage 84 | . . 56 28 Shots 2 | . . 1 1 Rammed 3 | . 3 . . Targets Rammed 3 | . 3 . . Kicked . | . . . . Crushed . | . . . . Highest Temperature 75 | . 12 75 9 Average Temperature 21 | . 6 36 4 Received Heat Transfer 177 | . 87 63 27 Siege Activations . | . . . . Robots Corrupted . | . . . . Combat Hostiles . | . . . . Parts Fried . | . . . . Impact Corruptions . | . . . . Robots Melted . | . . . . Combat Hostiles . | . . . . Parts Melted . | . . . . Heat Transferred 362 | . . 162 200 Parts Sabotaged . | . . . . Parts Stolen . | . . . . Parts Stripped . | . . . . Power Chain Reactions 2 | . . 1 1 Missiles Intercepted . | . . . . Alert | -11 -10 -10 -9 ------- Run | Scr Mat Min Mat Peak Influence 287 | . 287 153 239 Average Influence 113 | . 165 114 110 Maximum Alert Level 1 | . 1 . 1 Low Security (%) 82 | 100 55 100 75 Level 1 17 | . 44 . 24 Level 2 . | . . . . Level 3 . | . . . . Level 4 . | . . . . Level 5 . | . . . . High Security . | . . . . Max Security . | . . . . Squads Dispatched 2 | . 2 . . Investigation 1 | . 1 . . Extermination . | . . . . Reinforcement 1 | . 1 . . Assault . | . . . . Garrison . | . . . . Intercept . | . . . . Construction Impeded . | . . . . Haulers Reinforced . | . . . . Stealth | -11 -10 -10 -9 --------- Run | Scr Mat Min Mat Distress Signals 2 | . 1 . 1 Communications Jammed . | . . . . Distress Signals . | . . . . Times Spotted 30 | . 14 4 12 Peak Tracking Total 6 | . 4 2 6 Tactical Retreats 1 | . . . 1 Traps | -11 -10 -10 -9 ------- Run | Scr Mat Min Mat Traps Triggered 1 | . 1 . . Indirectly . | . . . . Trap Hack Attempts . | . . . . Triggered . | . . . . Disarmed . | . . . . Reprogrammed . | . . . . Reused . | . . . . Traps Extracted . | . . . . Installed . | . . . . Triggered . | . . . . Machines | -11 -10 -10 -9 ---------- Run | Scr Mat Min Mat Machines Disabled . | . . . . Max in Single Turn . | . . . . Machines Sabotaged . | . . . . Garrisons Compromised . | . . . . Overloaded Fab Kills . | . . . . Fab Network Shutdowns . | . . . . Hacking | -11 -10 -10 -9 --------- Run | Scr Mat Min Mat Machines Accessed . | . . . . Terminals . | . . . . Fabricators . | . . . . Repair Stations . | . . . . Recycling Units . | . . . . Scanalyzers . | . . . . Garrison Access . | . . . . Total Hacks . | . . . . Successful . | . . . . Failed . | . . . . Catastrophic . | . . . . Database Lockouts . | . . . . Manual . | . . . . Terminals . | . . . . Fabricators . | . . . . Repair Stations . | . . . . Recycling Units . | . . . . Scanalyzers . | . . . . Garrison Access . | . . . . Terminal Hacks . | . . . . Fabricator Hacks . | . . . . Repair Station Hacks . | . . . . Recycling Unit Hacks . | . . . . Scanalyzer . | . . . . Garrison Access Hacks . | . . . . Unauthorized Hacks . | . . . . Terminals . | . . . . Fabricators . | . . . . Repair Stations . | . . . . Recycling Units . | . . . . Scanalyzers . | . . . . Garrison Access . | . . . . Data Cores Recovered . | . . . . Used . | . . . . Hacking Detections . | . . . . Full Trace Events . | . . . . Feedback Events . | . . . . Feedback Blocked . | . . . . Robot Schematics Acquired . | . . . . Robots Built . | . . . . Matter . | . . . . Time . | . . . . Total Robot Build Rating . | . . . . Part Schematics Acquired . | . . . . Parts Built . | . . . . Matter . | . . . . Time . | . . . . Total Part Build Rating . | . . . . Parts Repaired . | . . . . Time . | . . . . Parts Recycled . | . . . . Recycled Matter . | . . . . Retrieved Matter . | . . . . Retrieved Components . | . . . . Parts Scanalyzed . | . . . . Part Schematics Acquired . | . . . . Parts Damaged . | . . . . Bothacking | -11 -10 -10 -9 ------------ Run | Scr Mat Min Mat Used RIF Installer . | . . . . Robots Hacked . | . . . . Non-combat . | . . . . Combat . | . . . . Robot Hacks Applied . | . . . . Relay Couplers Released . | . . . . Robots Rewired . | . . . . Allies Hacked . | . . . . Hacks Repelled . | . . . . Allies | -11 -10 -10 -9 -------- Run | Scr Mat Min Mat Total Allies 1 | . 1 . . Largest Group 1 | . 1 1 1 Highest-Rated Group 63 | . 59 59 63 Highest-Rated Ally 63 | . 59 59 63 Total Orders . | . . . . Ally Attacks 37 | . 11 9 17 Total Damage 631 | . 109 245 277 Kills 8 | . 2 4 2 Allies Corrupted . | . . . . Allies Melted . | . . . . Intel | -11 -10 -10 -9 ------- Run | Scr Mat Min Mat Robot Analysis Total . | . . . . Derelict Logs Recovered . | . . . . Drone Launches . | . . . . Drone Recoveries . | . . . . Exploration | -11 -10 -10 -9 ------------- Run | Scr Mat Min Mat Turns Passed 1392 | 175 386 526 305 Spaces Moved 720 | 103 194 285 138 Core 4 | 4 . . . Treads 716 | 99 194 285 138 Legs . | . . . . Wheels . | . . . . Hover . | . . . . Flight . | . . . . Fastest Speed 50 | 50 160 160 160 Average Speed 159 | 155 160 160 160 Slowest Speed 180 | 160 160 160 180 Overloaded Moves . | . . . . Propulsion Burnouts . | . . . . Robots Hopped . | . . . . Cave-ins Triggered . | . . . . Exploration Rate (%) 21 | 8 21 40 16 Regions Visited 3 Branch Regions 1 Pre-discovered Areas . | . . . . Known Exits Taken . | . . . . Unknown Exits Taken 3 | 1 1 1 . Scrap Searched . | . . . . Spaces Dug . | . . . . Terrain Destroyed 14 | . . 12 2 Melee . | . . . . Projectile . | . . . . AOE 14 | . . 12 2 Actions | -11 -10 -10 -9 --------- Run | Scr Mat Min Mat Total 830 | 118 229 309 174 Wait . | . . . . Move 717 | 102 193 284 138 Hop . | . . . . Pick Up 22 | 10 3 2 7 Fast Attach . | . . . . Attach 10 | 6 3 . 1 Detach 1 | . 1 . . Swap . | . . . . Drop 1 | . . . 1 Fire 76 | . 26 23 27 Melee . | . . . . Ram . | . . . . Kick . | . . . . Crush 3 | . 3 . . Escape Stasis . | . . . . Rewire . | . . . . Trap . | . . . . Miscellaneous . | . . . . Route ------- -11/Scrapyard -10/Materials -10/Mines (discovered 2 exits: [*Mat x2]) -9/Materials History --------- Turn | Location | Event 27 | -11/Scrapyard | Discovered new exit (range 15) 176 | -11/Scrapyard | Entered Materials 319 | -10/Materials | Build established: Mutant 434 | -10/Materials | Discovered new exit (range 9) 562 | -10/Materials | Entered Mines 562 | -10/Mines | Accompanied by 1 ally 607 | -10/Mines | Assembled infested the area 610 | -10/Mines | Met a Derelict bent on vengeance 981 | -10/Mines | Discovered new exit (range 6) 1070 | -10/Mines | Discovered new exit (range 8) 1088 | -10/Mines | Entered Materials 1088 | -9/Materials | Accompanied by 1 ally 1088 | -9/Materials | Evolved 2 slots: Utility x2 1367 | -9/Materials | Core integrity fell below 50% 1387 | -9/Materials | Core integrity fell below 20% 1393 | -9/Materials | Core destroyed Last Messages --------------- 01358_ K-01 Serf collects debris. 01359_ G-47 Trooper destroyed. 01359_ Switching to secondary target: L-31 Rogue. 01360_ Acquired 3 matter. 01361_ K-01 Serf collects debris. 01363_ Acquired 3 matter. 01363_ K-01 Serf collects debris. 01366_ Acquired 3 matter. 01366_ K-01 Serf collects debris. 01369_ Acquired 3 matter. 01369_ EM Pulse Gun destroyed. 01370_ U-05 Engineer lays Concrete. 01370_ K-01 Serf collects debris. 01371_ Assault Rifle destroyed. 01372_ K-01 Serf collects debris. 01373_ Lgt. Treads destroyed. 01377_ Acquired Ion Engine. 01379_ Acquired Sml. Laser. 01382_ Lgt. Treads destroyed. 01387_ Lgt. Ion Engine destroyed. Map ----- +----------------------------------------------------+ | ##! # # + #???????????????? | | ?# # # # #???????????????? | | ?# """ # # # #???????????????? | | ?# """ ###+####### ########???????????????? | | ?# """ #??????????????????????? | | ?# #??????????????????????? | | ?# ########???????????????? | | ?##"T"#########+####### # #???????????????? | | ??#####???????? ?????# # #???????????????? | | ??????????????????????# " """ #???????????????? | | ??????????????????????# %" """ #???????????????? | | ??????????????????????# " """ #???????????????? | | ??????????????????????# # #???????????????? | | ??????????????????????# ########???????????????? | | ??????????????????????# #??????????????????????? | | ??????????????????????# #??????????????????????? | | ??????????????????????# #??????????????????????? | | ??????????????????????# *#??????????????????????? | | ??????????????????????# !%#??????????????????????? | | ??????????????????????# =|#??????????????????????? | | ??????????????????????# #??????????????????????? | | ??????????????????????# #??????????????????????? | | ??????????????????????# #??????????????????????? | | ??????????????????????#% #??????????????????????? | | ??????????????????????# #??????????????????????? | | ??????????????????????# %@#??????????????????????? | | ??????????????????????#=kl#??????????????????????? | | ??????????????????????#% !#??????????????????????? | | ??????????????????????# [ #??????????????????????? | | ??????????????????????#%!%#??????????????????????? | | ????????????????? = *!% ???????????????????? | | ????????????????# *%= ! ???????????????? | | ????????????????# k * #?????????????? | | ????????????????# ########## / #?????????????? | | ????????????????# ??????????? ##?????????????? | | ???????????????# ????????????? #??????????????? | | ???????????????# ??????????????? ?????????????? | | ???????????????# ????????????????? ????????????? | | ???????????????# ?????????????????? ???????????? | | ????????????????????????????????????#????????????? | | ?????????????????????????????????????????????????? | | ?????????????????????????????????????????????????? | | ?????????????????????????????????????????????????? | | ?????????????????????????????????????????????????? | | ?????????????????????????????????????????????????? | | ?????????????????????????????????????????????????? | | ?????????????????????????????????????????????????? | | ?????????????????????????????????????????????????? | | ?????????????????????????????????????????????????? | | ?????????????????????????????????????????????????? | +----------------------------------------------------+ Best States ------------- Heat Dissipation 28 Energy Generation 10 Energy Capacity 125 Matter Stores 300 Matter Capacity 300 Sight Range 16 Terrain Scan Density 10 Evasion (%) 40 Recoil Reduction 2 Item Schematics ----------------- None Robot Schematics ------------------ None Fabricated ------------ Nothing Alien Tech Used ----------------- None Achievements -------------- None Challenges ------------ None Game ------ Seed OmegaUtilityCleaver Manual? 0 Play Time 00:14:37 Cumulative 8.2 hours Start 2020.04.01 @ 22:41:08 End 2020.04.02 @ 23:00:00 Sessions 3 Manual Loads 0 Difficulty Rogue Special Mode AFD2020/Player2 Game No. 12 Rogue 12 Adventurer 0 Explorer 0 Win Type - Total 0 Types 0/0/0/0/0/0/0 Lore% 9 Gallery% 10 Achievement% 10 Wizard Run 0 Options --------- ASCII 0 Keyboard 0 Movement Mouse Keybinds 0 Fullscreen 1 Font 24/Smallcaps Map View 76x50 Tactical HUD 1 Map Filters NONE Filters NONE Steam 1 RUN: be02e94d-7a64-47fe-b6e1-79e61e7142ae